fUSD/lending_fUSD_20240107
["ID","MTS","AMOUNT","RATE_DAILY","PERIOD"]
[310656754,1704637860880,-500.0,0.00022667,2]
[310656755,1704637860889,-500.0,0.00022667,2]
[310656756,1704637860898,-500.0,0.00022667,2]
[310656757,1704637860908,-500.0,0.00022667,2]
[310656758,1704637860917,-500.0,0.00022667,2]
[310656759,1704637860926,-500.0,0.00022667,2]
[310656760,1704637860936,-500.0,0.00022667,2]
[310656761,1704637860945,-500.0,0.00022667,2]
[310656762,1704637860954,-500.0,0.00022667,2]
[310656763,1704637860963,-500.0,0.00022667,2]
[310656764,1704637860972,-500.0,0.00022667,2]
[310656765,1704637860982,-500.0,0.00022667,2]
[310656766,1704637860991,-500.0,0.00022667,2]
[310656767,1704637861000,-500.0,0.00022667,2]
[310656768,1704637861010,-500.0,0.00022667,2]
[310656769,1704637861020,-502.30793211,0.00022667,2]
[310656770,1704637861029,-500.0,0.00022667,2]
[310656771,1704637861039,-500.0,0.00022667,2]
[310656772,1704637861048,-500.0,0.00022667,2]
[310656773,1704637861057,-500.0,0.00022667,2]
[310656774,1704637861068,-211.79871222,0.00022667,2]
[310656775,1704637861078,-500.0,0.00022667,2]
[310656776,1704637861088,-500.0,0.00022667,2]
[310656777,1704637861224,-500.0,0.00022667,2]
[310656778,1704637861234,-500.0,0.00022667,2]
[310656779,1704637861243,-500.0,0.00022667,2]
[310656780,1704637861253,-500.0,0.00022667,2]
[310656781,1704637861262,-500.0,0.00022667,2]
[310656782,1704637861270,-400.72225036,0.00022667,2]
[310656783,1704637861299,-99.27774964,0.00022667,2]
[310656784,1704637861309,-500.0,0.00022667,2]
[310656785,1704637861318,-500.0,0.00022667,2]
[310656786,1704637861327,-500.0,0.00022667,2]
[310656787,1704637861337,-500.0,0.00022667,2]
[310656788,1704637861346,-500.0,0.00022667,2]
[310656789,1704637861356,-310.50024079,0.00022667,2]
[310656790,1704637861367,-191.73090509,0.00022667,2]
[310656791,1704637861377,-500.0,0.00022667,2]
[310656792,1704637861386,-500.0,0.00022667,2]
[310656793,1704637861395,-500.0,0.00022667,2]
[310656794,1704637861405,-530.45072609,0.00022667,2]
[310656795,1704637861415,-500.0,0.00022667,2]
[310656796,1704637861424,-500.0,0.00022667,2]
[310656797,1704637861434,-1000.0,0.00022667,2]
[310656798,1704637861443,-157.81836882,0.00022667,2]
[310656799,1704637861455,-342.18163118,0.00022667,2]
[310656800,1704637861465,-71.31347989,0.00022667,2]
[310656801,1704637862425,-500.0,0.00022493,2]
[310656802,1704637862434,-425.48874355,0.00022493,2]
[310656803,1704637862473,-74.51125645,0.00022493,2]
[310656804,1704637862483,-500.0,0.00022493,2]
[310656805,1704637862492,-500.0,0.00022493,2]
[310656806,1704637862503,-500.0,0.00022493,2]
[310656807,1704637862514,-500.0,0.00022493,2]
[310656808,1704637862524,-500.0,0.00022493,2]
[310656809,1704637862535,-500.0,0.00022493,2]
[310656810,1704637862544,-500.0,0.00022493,2]
[310656811,1704637862555,-500.0,0.00022494,2]
[310656812,1704637862564,-500.0,0.00022494,2]
[310656813,1704637862573,-556.36967284,0.00022494,2]
[310656814,1704637862583,-500.0,0.00022494,2]
[310656815,1704637862592,-500.0,0.00022494,2]
[310656816,1704637862601,-500.0,0.00022494,2]
[310656817,1704637862611,-500.0,0.00022494,2]
[310656818,1704637862620,-500.0,0.00022494,2]
[310656819,1704637862630,-500.0,0.00022494,2]
[310656820,1704637862639,-500.0,0.00022494,2]
[310656821,1704637862648,-500.0,0.00022494,2]
[310656822,1704637862657,-500.0,0.00022494,2]
[310656823,1704637862666,-500.0,0.00022494,2]
[310656824,1704637862676,-500.0,0.00022494,2]
[310656825,1704637862685,-500.0,0.00022494,2]
[310656826,1704637862695,-500.0,0.00022494,2]
[310656827,1704637862705,-500.0,0.00022494,2]
[310656828,1704637862714,-367.42114455,0.00022494,2]
[310656829,1704637862740,-132.57885545,0.00022494,2]
[310656830,1704637862749,-6488.15863258,0.00022496,2]
[310656831,1704637862761,-12896.75853204,0.00022496,2]
[310656832,1704637862796,-500.0,0.00022494,2]
[310656833,1704637862805,-559426.05611739,0.00022496,2]
[310656834,1704637862815,-500.0,0.00022496,2]
[310656835,1704637862824,-500.0,0.00022496,2]
[310656836,1704637862835,-500.0,0.00022497,2]
[310656837,1704637862846,-500.0,0.00022497,2]
[310656838,1704637862855,-500.0,0.00022497,2]
[310656839,1704637862865,-500.0,0.00022497,2]
[310656840,1704637862874,-500.0,0.00022497,2]
[310656841,1704637862883,-500.0,0.00022497,2]
[310656842,1704637862892,-500.0,0.00022498,2]
[310656843,1704637862901,-500.0,0.00022498,2]
[310656844,1704637862911,-937.95,0.00022565,2]
[310656845,1704637862920,-500.0,0.00022565,2]
[310656846,1704637862930,-500.0,0.00022565,2]
[310656847,1704637862939,-648.36,0.00022565,2]
[310656848,1704637862948,-641.83,0.00022566,2]
[310656849,1704637862957,-641.83,0.00022566,2]
[310656850,1704637862966,-937.95,0.00022566,2]
[310656851,1704637862975,-516.31945581,0.00022566,2]
[310656852,1704637862984,-500.0,0.00022566,2]
[310656853,1704637862994,-500.0,0.00022566,2]
[310656854,1704637863003,-500.0,0.00022566,2]
[310656855,1704637863012,-268.24757346,0.00022566,2]
[310656856,1704637863021,-641.83,0.00022664,2]
[310656857,1704637863030,-500.0,0.00022665,2]
[310656858,1704637863040,-500.0,0.00022665,2]
[310656859,1704637863050,-500.0,0.00022665,2]
[310656860,1704637863059,-500.0,0.00022665,2]
[310656861,1704637863069,-500.0,0.00022665,2]
[310656862,1704637863079,-937.95,0.00022666,2]
[310656863,1704637863089,-937.95,0.00022666,2]
[310656864,1704637863099,-641.83,0.00022666,2]
[310656865,1704637863108,-937.95,0.00022666,2]
[310656866,1704637863118,-500.0,0.00022666,2]
[310656867,1704637863127,-428.68652011,0.00022667,2]
[310656868,1704637863137,-500.0,0.00022667,2]
[310656869,1704637863146,-500.0,0.00022667,2]
[310656870,1704637863156,-500.0,0.00022667,2]
[310656871,1704637863165,-500.0,0.00022667,2]
[310656872,1704637863175,-567.52614403,0.00022667,2]
[310656873,1704637863185,-500.0,0.00022667,2]
[310656874,1704637863194,-500.0,0.00022667,2]
[310656875,1704637863204,-500.0,0.00022667,2]
[310656876,1704637863213,-500.0,0.00022667,2]
[310656877,1704637863223,-500.0,0.00022667,2]
[310656878,1704637863233,-300.0,0.00022667,2]
[310656879,1704637863242,-500.0,0.00022667,2]
[310656880,1704637863251,-158.33436037,0.00022667,2]
[310656881,1704637863262,-579.61035159,0.00022667,2]
[310656882,1704637863271,-25152.5313605,0.00022668,2]
[310656883,1704637863280,-170.47902395,0.00022701,2]
[310656884,1704637863422,-1057.13967802,0.00022746,2]
[310656885,1704637863432,-155.0,0.00022783,2]
[310656886,1704637863442,-500.0,0.00022786,2]
[310656887,1704637863453,-500.0,0.00022794,2]
[310656888,1704637863462,-500.0,0.00022795,2]
[310656889,1704637863471,-500.0,0.00022795,2]
[310656890,1704637863480,-613.75,0.00022795,2]
[310656891,1704637863490,-500.0,0.00022795,2]
[310656892,1704637863501,-3039.55,0.00022795,2]
[310656893,1704637863511,-500.0,0.00022795,2]
[310656894,1704637863522,-500.0,0.00022795,2]
[310656895,1704637863531,-517.06,0.00022795,2]
[310656896,1704637863542,-500.0,0.00022795,2]
[310656897,1704637863551,-500.0,0.00022795,2]
[310656898,1704637863561,-500.0,0.00022795,2]
[310656899,1704637863571,-500.0,0.00022795,2]
[310656900,1704637863581,-2391.46,0.00022795,2]
[310656901,1704637863590,-544.16,0.00022795,2]
[310656902,1704637863600,-500.0,0.00022795,2]
[310656903,1704637863609,-500.0,0.00022795,2]
[310656904,1704637863619,-578.9,0.00022795,2]
[310656905,1704637863628,-500.0,0.00022795,2]
[310656906,1704637863638,-1144.28,0.00022795,2]
[310656907,1704637863648,-603.59,0.00022795,2]
[310656908,1704637863657,-500.0,0.00022795,2]
[310656909,1704637863666,-500.0,0.00022795,2]
[310656910,1704637863675,-1551.04,0.00022796,2]
[310656911,1704637863685,-4259.52,0.00022796,2]
[310656912,1704637863694,-500.0,0.00022796,2]
[310656913,1704637863703,-575.24,0.00022796,2]
[310656914,1704637863712,-2016.6,0.00022796,2]
[310656915,1704637863722,-500.0,0.00022796,2]
[310656916,1704637863731,-500.0,0.00022796,2]
[310656917,1704637863741,-1681.68,0.00022796,2]
[310656918,1704637863752,-500.0,0.00022796,2]
[310656919,1704637863761,-529.37,0.00022796,2]
[310656920,1704637863771,-500.0,0.00022796,2]
[310656921,1704637863781,-500.0,0.00022796,2]
[310656922,1704637863792,-1024.89,0.00022796,2]
[310656923,1704637863801,-500.0,0.00022796,2]
[310656924,1704637863811,-500.0,0.00022796,2]
[310656925,1704637863821,-1027.53,0.00022796,2]
[310656926,1704637863831,-500.0,0.00022796,2]
[310656927,1704637863840,-781.73,0.00022796,2]
[310656928,1704637863850,-430.07,0.00022796,2]
[310656929,1704637863860,-1482.03,0.00022796,2]
[310656930,1704637863870,-582.89,0.00022796,2]
[310656931,1704637863880,-500.0,0.00022796,2]
[310656932,1704637863890,-500.0,0.00022796,2]
[310656933,1704637863900,-937.95,0.00022796,2]
[310656934,1704637863910,-192.03,0.00022797,2]
[310656935,1704637863921,-376.69,0.00022797,2]
[310656936,1704637863932,-500.0,0.00022797,2]
[310656937,1704637863944,-505.54,0.00022797,2]
[310656938,1704637863953,-597.58,0.00022797,2]
[310656939,1704637863963,-500.0,0.00022797,2]
[310656940,1704637863972,-159.85,0.00022797,2]
[310656941,1704637863982,-500.0,0.00022797,2]
[310656942,1704637863991,-500.0,0.00022797,2]
[310656943,1704637864001,-500.0,0.00022797,2]
[310656944,1704637864010,-500.0,0.00022797,2]
[310656945,1704637864019,-517.07,0.00022797,2]
[310656946,1704637864028,-332.92,0.00022797,2]
[310656947,1704637864038,-500.0,0.00022797,2]
[310656948,1704637864047,-500.0,0.00022797,2]
[310656949,1704637864056,-246.26,0.00022797,2]
[310656950,1704637864066,-320.38098134,0.00022797,2]
[310656951,1704637864075,-500.0,0.00022797,2]
[310656952,1704637864084,-500.0,0.00022797,2]
[310656953,1704637864094,-535.02,0.00022797,2]
[310656954,1704637864104,-500.0,0.00022797,2]
[310656955,1704637864113,-500.0,0.00022797,2]
[310656956,1704637864122,-209.6,0.00022797,2]
[310656957,1704637864132,-500.0,0.00022797,2]
[310656958,1704637864141,-500.0,0.00022797,2]
[310656959,1704637864150,-500.0,0.00022797,2]
[310656960,1704637864160,-500.0,0.00022797,2]
[310656961,1704637864170,-500.0,0.00022797,2]
[310656962,1704637864179,-846.81,0.00022797,2]
[310656963,1704637864189,-506.75433567,0.00022797,2]
[310656964,1704637864199,-1381.06,0.00022797,2]
[310656965,1704637864208,-500.0,0.00022797,2]
[310656966,1704637864218,-2115.91,0.00022797,2]
[310656967,1704637864228,-500.0,0.00022797,2]
[310656968,1704637864238,-500.0,0.00022797,2]
[310656969,1704637864247,-500.0,0.00022797,2]
[310656970,1704637864257,-500.0,0.00022797,2]
[310656971,1704637864272,-500.0,0.00022797,2]
[310656972,1704637864283,-500.0,0.00022797,2]
[310656973,1704637864294,-500.0,0.00022797,2]
[310656974,1704637864306,-500.0,0.00022797,2]
[310656975,1704637864316,-500.0,0.00022797,2]
[310656976,1704637864325,-500.0,0.00022797,2]
[310656977,1704637864335,-308.92,0.00022797,2]
[310656978,1704637864345,-500.0,0.00022797,2]
[310656979,1704637864354,-504.46,0.00022797,2]
[310656980,1704637864364,-500.0,0.00022797,2]
[310656981,1704637864373,-150.0,0.00022797,2]
[310656982,1704637864383,-500.0,0.00022797,2]
[310656983,1704637864392,-500.0,0.00022797,2]
[310656984,1704637864405,-500.0,0.00022797,2]
[310656985,1704637864414,-500.0,0.00022797,2]
[310656986,1704637864424,-500.0,0.00022797,2]
[310656987,1704637864433,-500.0,0.00022797,2]
[310656988,1704637864442,-500.0,0.00022797,2]
[310656989,1704637864452,-533.51971634,0.00022797,2]
[310656990,1704637864461,-1652.68,0.00022797,2]
[310656991,1704637864471,-500.0,0.00022797,2]
[310656992,1704637864481,-500.0,0.00022797,2]
[310656993,1704637864490,-500.0,0.00022797,2]
[310656994,1704637864500,-500.0,0.00022797,2]
[310656995,1704637864509,-512.3808503,0.00022797,2]
[310656996,1704637864518,-500.0,0.00022797,2]
[310656997,1704637864528,-500.0,0.00022797,2]
[310656998,1704637864537,-917.97,0.00022797,2]
[310656999,1704637864547,-517.12074108,0.00022797,2]
[310657000,1704637864556,-500.0,0.00022797,2]
[310657001,1704637864566,-500.0,0.00022797,2]
[310657002,1704637864575,-500.0,0.00022797,2]
[310657003,1704637864585,-363.34000675,0.00022797,2]
[310657004,1704637864595,-500.0,0.00022797,2]
[310657005,1704637864605,-500.0,0.00022797,2]
[310657006,1704637864614,-500.0,0.00022797,2]
[310657007,1704637864628,-500.0,0.00022797,2]
[310657008,1704637864638,-500.0,0.00022797,2]
[310657009,1704637864648,-503.36265488,0.00022797,2]
[310657010,1704637864658,-500.0,0.00022797,2]
[310657011,1704637864668,-507.59151791,0.00022797,2]
[310657012,1704637864678,-500.0,0.00022797,2]
[310657013,1704637864688,-500.0,0.00022797,2]
[310657014,1704637864697,-500.0,0.00022797,2]
[310657015,1704637864707,-500.0,0.00022797,2]
[310657016,1704637864717,-519.52158361,0.00022797,2]
[310657017,1704637864727,-500.0,0.00022797,2]
[310657018,1704637864737,-500.0,0.00022797,2]
[310657019,1704637864747,-278.45122746,0.00022797,2]
[310657020,1704637864757,-420.0377614,0.00022797,2]
[310657021,1704637864767,-500.0,0.00022797,2]
[310657022,1704637864776,-500.0,0.00022797,2]
[310657023,1704637864786,-500.0,0.00022797,2]
[310657024,1704637864796,-500.0,0.00022797,2]
[310657025,1704637864805,-500.0,0.00022797,2]
[310657026,1704637864815,-500.0,0.00022797,2]
[310657027,1704637864825,-500.0,0.00022797,2]
[310657028,1704637864835,-500.0,0.00022797,2]
[310657029,1704637864845,-500.0,0.00022797,2]
[310657030,1704637864854,-500.0,0.00022797,2]
[310657031,1704637864863,-500.0,0.00022797,2]
[310657032,1704637864873,-500.0,0.00022797,2]
[310657033,1704637864882,-500.0,0.00022797,2]
[310657034,1704637864892,-500.0,0.00022797,2]
[310657035,1704637864901,-500.0,0.00022797,2]
[310657036,1704637864911,-500.0,0.00022797,2]
[310657037,1704637864921,-500.0,0.00022797,2]
[310657038,1704637864930,-500.0,0.00022797,2]
[310657039,1704637864940,-500.0,0.00022797,2]
[310657040,1704637864949,-500.0,0.00022797,2]
[310657041,1704637864962,-500.0,0.00022797,2]
[310657042,1704637864972,-500.0,0.00022797,2]
[310657043,1704637864982,-532.6625359,0.00022797,2]
[310657044,1704637864991,-500.0,0.00022797,2]
[310657045,1704637865000,-330.38,0.00022797,2]
[310657046,1704637865010,-500.0,0.00022797,2]
[310657047,1704637865020,-500.0,0.00022797,2]
[310657048,1704637865030,-500.0,0.00022797,2]
[310657049,1704637865040,-500.0,0.00022797,2]
[310657050,1704637865050,-500.0,0.00022797,2]
[310657051,1704637865060,-500.0,0.00022797,2]
[310657052,1704637865070,-500.0,0.00022797,2]
[310657053,1704637865080,-972.61,0.00022797,2]
[310657054,1704637865090,-500.0,0.00022797,2]
[310657055,1704637865100,-500.0,0.00022797,2]
[310657056,1704637865109,-500.0,0.00022797,2]
[310657057,1704637865119,-7305.55,0.00022797,2]
[310657058,1704637865129,-500.0,0.00022797,2]
[310657059,1704637865139,-607.17,0.00022797,2]
[310657060,1704637865149,-528.78452166,0.00022797,2]
[310657061,1704637865159,-500.0,0.00022797,2]
[310657062,1704637865169,-500.0,0.00022797,2]
[310657063,1704637865178,-159.41983387,0.00022797,2]
[310657064,1704637865189,-500.0,0.00022797,2]
[310657065,1704637865198,-500.0,0.00022797,2]
[310657066,1704637865208,-500.0,0.00022797,2]
[310657067,1704637865219,-502.52502848,0.00022797,2]
[310657068,1704637865229,-625.39926918,0.00022797,2]
[310657069,1704637865239,-500.0,0.00022797,2]
[310657070,1704637865249,-500.0,0.00022797,2]
[310657071,1704637865259,-500.0,0.00022797,2]
[310657072,1704637865269,-502.02029876,0.00022797,2]
[310657073,1704637865279,-1058.56,0.00022797,2]
[310657074,1704637865289,-500.0,0.00022797,2]
[310657075,1704637865302,-500.0,0.00022797,2]
[310657076,1704637865314,-500.0,0.00022797,2]
[310657077,1704637865325,-500.0,0.00022797,2]
[310657078,1704637865335,-500.0,0.00022797,2]
[310657079,1704637865346,-500.0,0.00022797,2]
[310657080,1704637865356,-500.0,0.00022797,2]
[310657081,1704637865366,-506.17295512,0.00022797,2]
[310657082,1704637865377,-500.0,0.00022797,2]
[310657083,1704637865387,-500.0,0.00022797,2]
[310657084,1704637865397,-667.45,0.00022797,2]
[310657085,1704637865407,-501.75852098,0.00022797,2]
[310657086,1704637865416,-370.0,0.00022797,2]
[310657087,1704637865427,-543.32,0.00022797,2]
[310657088,1704637865437,-500.0,0.00022797,2]
[310657089,1704637865446,-500.0,0.00022797,2]
[310657090,1704637865457,-500.0,0.00022797,2]
[310657091,1704637865466,-500.0,0.00022797,2]
[310657092,1704637865476,-500.0,0.00022797,2]
[310657093,1704637865486,-500.0,0.00022797,2]
[310657094,1704637865496,-500.0,0.00022797,2]
[310657095,1704637865506,-500.0,0.00022797,2]
[310657096,1704637865516,-500.0,0.00022797,2]
[310657097,1704637865526,-500.0,0.00022797,2]
[310657098,1704637865535,-500.0,0.00022797,2]
[310657099,1704637865546,-627.29,0.00022797,2]
[310657100,1704637865556,-502.45058199,0.00022797,2]
[310657101,1704637865566,-500.0,0.00022797,2]
[310657102,1704637865576,-500.0,0.00022797,2]
[310657103,1704637865587,-505.43620316,0.00022797,2]
[310657104,1704637865597,-574.18,0.00022797,2]
[310657105,1704637865607,-500.0,0.00022797,2]
[310657106,1704637865773,-500.0,0.00022797,2]
[310657107,1704637865784,-500.0,0.00022797,2]
[310657108,1704637865795,-597.89,0.00022797,2]
[310657109,1704637865805,-500.0,0.00022797,2]
[310657110,1704637865814,-236.24938328,0.00022797,2]
[310657111,1704637865824,-317.97688968,0.00022797,2]
[310657112,1704637865836,-500.0,0.00022797,2]
[310657113,1704637865847,-500.0,0.00022797,2]
[310657114,1704637865856,-526.43,0.00022797,2]
[310657115,1704637865866,-500.0,0.00022797,2]
[310657116,1704637865876,-500.0,0.00022797,2]
[310657117,1704637865886,-500.0,0.00022797,2]
[310657118,1704637865895,-500.0,0.00022797,2]
[310657119,1704637865905,-500.0,0.00022797,2]
[310657120,1704637865914,-500.0,0.00022797,2]
[310657121,1704637865924,-500.0,0.00022797,2]
[310657122,1704637865947,-500.0,0.00022797,2]
[310657123,1704637865957,-500.0,0.00022797,2]
[310657124,1704637865967,-500.0,0.00022797,2]
[310657125,1704637865978,-514.11,0.00022797,2]
[310657126,1704637865988,-500.0,0.00022797,2]
[310657127,1704637865999,-500.0,0.00022797,2]
[310657128,1704637866010,-500.0,0.00022797,2]
[310657129,1704637866020,-653.0,0.00022797,2]
[310657130,1704637866031,-583.33557978,0.00022797,2]
[310657131,1704637866042,-500.0,0.00022797,2]
[310657132,1704637866053,-500.0,0.00022797,2]
[310657133,1704637866063,-500.0,0.00022797,2]
[310657134,1704637866073,-500.0,0.00022797,2]
[310657135,1704637866083,-500.0,0.00022797,2]
[310657136,1704637866094,-500.0,0.00022797,2]
[310657137,1704637866105,-500.0,0.00022797,2]
[310657138,1704637866115,-857.86,0.00022797,2]
[310657139,1704637866125,-500.0,0.00022797,2]
[310657140,1704637866135,-500.0,0.00022797,2]
[310657141,1704637866145,-500.0,0.00022797,2]
[310657142,1704637866155,-500.0,0.00022797,2]
[310657143,1704637866166,-1017.17,0.00022797,2]
[310657144,1704637866176,-931.43,0.00022797,2]
[310657145,1704637866186,-500.0,0.00022797,2]
[310657146,1704637866196,-500.0,0.00022797,2]
[310657147,1704637866206,-500.0,0.00022797,2]
[310657148,1704637866216,-500.0,0.00022797,2]
[310657149,1704637866226,-791.43,0.00022797,2]
[310657150,1704637866237,-500.0,0.00022797,2]
[310657151,1704637866246,-500.0,0.00022797,2]
[310657152,1704637866256,-500.0,0.00022797,2]
[310657153,1704637866266,-500.0,0.00022797,2]
[310657154,1704637866277,-500.0,0.00022797,2]
[310657155,1704637866287,-819.35,0.00022797,2]
[310657156,1704637866299,-500.0,0.00022797,2]
[310657157,1704637866310,-500.0,0.00022797,2]
[310657158,1704637866320,-500.0,0.00022797,2]
[310657159,1704637866330,-500.0,0.00022797,2]
[310657160,1704637866340,-3190.97,0.00022797,2]
[310657161,1704637866350,-500.0,0.00022797,2]
[310657162,1704637866361,-500.0,0.00022797,2]
[310657163,1704637866371,-500.0,0.00022797,2]
[310657164,1704637866381,-500.0,0.00022797,2]
[310657165,1704637866391,-500.0,0.00022797,2]
[310657166,1704637866402,-500.0,0.00022797,2]
[310657167,1704637866412,-500.0,0.00022797,2]
[310657168,1704637866422,-500.0,0.00022797,2]
[310657169,1704637866433,-504.77,0.00022797,2]
[310657170,1704637866443,-500.0,0.00022797,2]
[310657171,1704637866453,-500.0,0.00022797,2]
[310657172,1704637866463,-500.0,0.00022797,2]
[310657173,1704637866473,-500.0,0.00022797,2]
[310657174,1704637866483,-500.0,0.00022797,2]
[310657175,1704637866493,-628.85,0.00022797,2]
[310657176,1704637866504,-500.0,0.00022797,2]
[310657177,1704637866514,-500.0,0.00022797,2]
[310657178,1704637866524,-629.76,0.00022797,2]
[310657179,1704637866534,-500.0,0.00022797,2]
[310657180,1704637866546,-500.0,0.00022797,2]
[310657181,1704637866557,-500.0,0.00022797,2]
[310657182,1704637866568,-500.0,0.00022797,2]
[310657183,1704637866578,-525.86,0.00022797,2]
[310657184,1704637866588,-500.0,0.00022797,2]
[310657185,1704637866598,-641.83,0.00022797,2]
[310657186,1704637866609,-500.0,0.00022797,2]
[310657187,1704637866619,-500.0,0.00022797,2]
[310657188,1704637866629,-500.0,0.00022797,2]
[310657189,1704637866639,-500.0,0.00022798,2]
[310657190,1704637866649,-500.0,0.00022798,2]
[310657191,1704637866659,-500.0,0.00022798,2]
[310657192,1704637866669,-567.33243439,0.00022798,2]
[310657193,1704637866679,-500.0,0.00022798,2]
[310657194,1704637866689,-500.0,0.00022798,2]
[310657195,1704637866698,-500.0,0.00022798,2]
[310657196,1704637866708,-500.0,0.00022798,2]
[310657197,1704637866718,-500.0,0.00022798,2]
[310657198,1704637866728,-500.0,0.00022798,2]
[310657199,1704637866738,-500.0,0.00022798,2]
[310657200,1704637866747,-500.0,0.00022798,2]
[310657201,1704637866760,-500.0,0.00022798,2]
[310657202,1704637866770,-500.0,0.00022798,2]
[310657203,1704637866780,-500.0,0.00022798,2]
[310657204,1704637866790,-500.0,0.00022798,2]
[310657205,1704637866801,-510.60803792,0.00022798,2]
[310657206,1704637866812,-500.0,0.00022798,2]
[310657207,1704637866822,-502.18302034,0.00022798,2]
[310657208,1704637866832,-578.14012546,0.00022798,2]
[310657209,1704637866843,-500.0,0.00022798,2]
[310657210,1704637866852,-500.0,0.00022798,2]
[310657211,1704637866863,-500.0,0.00022798,2]
[310657212,1704637866873,-500.0,0.00022798,2]
[310657213,1704637866883,-500.0,0.00022798,2]
[310657214,1704637866894,-500.0,0.00022798,2]
[310657215,1704637866903,-504.78411462,0.00022798,2]
[310657216,1704637866913,-500.0,0.00022798,2]
[310657217,1704637866923,-500.0,0.00022798,2]
[310657218,1704637866933,-202.81969171,0.00022798,2]
[310657219,1704637866943,-500.0,0.00022798,2]
[310657220,1704637866953,-500.0,0.00022798,2]
[310657221,1704637866962,-534.03744513,0.00022798,2]
[310657222,1704637866972,-500.0,0.00022798,2]
[310657223,1704637866982,-500.0,0.00022798,2]
[310657224,1704637866992,-516.53769171,0.00022798,2]
[310657225,1704637867001,-397.70411786,0.00022798,2]
[310657226,1704637867011,-500.0,0.00022798,2]
[310657227,1704637867021,-612.41083351,0.00022798,2]
[310657228,1704637867030,-506.4435489,0.00022798,2]
[310657229,1704637867040,-500.0,0.00022798,2]
[310657230,1704637867051,-500.0,0.00022798,2]
[310657231,1704637867060,-500.0,0.00022798,2]
[310657232,1704637867070,-511.20514582,0.00022798,2]
[310657233,1704637867080,-500.0,0.00022798,2]
[310657234,1704637867089,-500.0,0.00022798,2]
[310657235,1704637867099,-500.0,0.00022798,2]
[310657236,1704637867109,-500.0,0.00022798,2]
[310657237,1704637867118,-500.0,0.00022798,2]
[310657238,1704637867128,-500.0,0.00022798,2]
[310657239,1704637867137,-500.0,0.00022798,2]
[310657240,1704637867147,-500.0,0.00022798,2]
[310657241,1704637867156,-500.0,0.00022798,2]
[310657242,1704637867165,-500.0,0.00022798,2]
[310657243,1704637867175,-488.86047488,0.00022798,2]
[310657244,1704637867185,-506.40764065,0.00022798,2]
[310657245,1704637867195,-500.0,0.00022798,2]
[310657246,1704637867205,-500.0,0.00022798,2]
[310657247,1704637867214,-500.0,0.00022798,2]
[310657248,1704637867224,-506.73082152,0.00022798,2]
[310657249,1704637867233,-500.0,0.00022798,2]
[310657250,1704637867243,-500.0,0.00022798,2]
[310657251,1704637867253,-500.0,0.00022798,2]
[310657252,1704637867263,-500.0,0.00022798,2]
[310657253,1704637867273,-500.0,0.00022798,2]